{"text_format":"3","workbook":"xlsx","n_sheets":17,"sheets":["P & G's","ALTERATIONS","CONC,FORMWORK&REINFORCEMENT","MASONRY","WATERPROOFING","CARPENTRY&JOINERY","CEILINGS&PARTITIONS","IRONMOGERY","METALWORK","PLASTERING","TILING","PLUMBING","GLAZING","PAINTING","ROOF","PROVISIONAL SUM","SUMMARY"],"not_rendered":{"defined_names":2},"read":"whole","date_system":"1900"}

{"sheet":"P & G's","index":0,"n_rows":162,"n_cols":7,"rows_kept":162}
["ITEM NO","PAY REF","DESCRIPTION","UNIT","QUANTITY","RATE","AMOUNT"]
[null,null,"BILL NO 1","H1"]
[]
[null,null,"PRELIMINARIES ","H1"]
[]
[null,null,"PREAMBLES FOR TRADES ","H2"]
[]
[null,null,"The SANS 1200 shall be deemed to be incorporated in these bills of quantities and no claims arising from brevity of description of items fully described in the said Preambles will be entertained ",null,0]
[]
[null,null,"Supplementary preambles are incorporated in these bills of quantities to satisfy the requirements of this project. Such supplementary preambles shall take precedence over the provisions of the said Model Preambles ",null,0]
[]
[null,null,"The contractor's prices for all items throughout these bills of quantities must take account of and include for all of the obligations, requirements and specifications given in the said Preambles and in any supplementary  preambles ",null,0]
[]
[null,"SABS1200 A","SECTION A:  GENERAL","H3"]
[]
[null,8.3,"SCHEDULED FIXED-CHARGE AND VALUE RELATED ITEMS","H3"]
[]
["1","8.3.1","Contractual requirements","SUM",1]
[]
["2","8.3.1","Political Riot Insurance","SUM",1]
[]
[null,"8.3.2","Establishment of Facilities on Site","H3"]
[]
[null,"8.3.2.1","Facilities for Engineer (SABS 1200 AB)","H3"]
[]
["3",null,"c) Contract Name boards","SUM",1]
[]
[null,"8.3.2.2","Facilities for Contractor","H3"]
[]
["4","a)","Offices and storage sheds","SUM",1]
[]
["5","e)","Ablution and latrine facilities","SUM",1]
[]
["6","f)","Tools and equipment","SUM",1]
[]
["7","g)","Water supplies, electric power and communications","SUM",1]
[]
["8","h)","Dealing with water on site for the duration of the contract","SUM",1]
[]
["9","i)","Access","SUM",0]
[]
["10","j)","Plant","SUM",0]
[]
["11","8.3.3","Other Fixed Charge Obligations","SUM",0]
[]
["12","8.3.4","Removal of Site Establishment on completion","SUM",1]
[]
[null,8.4,"SCHEDULED TIME RELATED ITEMS","H3"]
[]
["13","8.4.1","Contractual Requirements","SUM",0]
[]
[null,null,"Operation and Maintenance of Facilities on Site, for Duration of Construction","H3"]
[]
[null,"8.4.2.2","Facilities for Contractor","H3"]
[]
["14","a)","Offices and storage sheds","SUM",1]
[]
["15","e)","Ablution and latrine facilities","SUM",1]
[]
["16","f)","Tools and equipment","SUM",1]
[]
["17","g)","Water supplies, electric power and communications","SUM",1]
[]
["18","i)","Access","SUM",1]
[]
["19","j)","Plant including scaffolding etc","SUM",0]
[]
["20","8.4.3","Supervision for Duration of Construction","SUM",1]
[]
["21",null,"Company and Head Office Overhead Cost for the duration of the Contract","SUM",1]
[]
["22","8.4.5","Other Time-Related Obligations","SUM",0]
[]
["23",null,"Provision of Security Personnel","SUM",1]
[]
[null,null,"Standing Time Compensation for delays incurred","H3"]
[]
["24","a)","Plant","Sum/D",1]
[]
["25","b)","Labour","Sum/D",0]
[]
["26","c)","Supervision","Sum/D",0]
[]
["27","d)","Other facilities not covered by (a), (b) and (c)","Sum/D",0]
[]
[null,null,"DAY WORK (Provisional) NOTE:","H3"]
[]
[null,null,"(i) All rates to be Gross (Mark up, profits under overheads, etc. and all requirements listed in item 8.7 included)  (ii) The Tenderer must state the capacity of the Plant that his rate is based on:  (iii) Day works will apply in quantities.  Sub clause 6.5 of the General Conditions of Contact Limiting increases in quantities and/or any Sub items will not apply in day works  (iv) Standing time will be taken as 2/3 of the Rate","H3"]
[]
[null,"8.7.1","Labour","H3"]
[]
["28","a)","Site Foreman","Hrs",0]
[]
["29","b)","Trade Foreman","Hrs",0]
[]
["30","c)","Supervisor","Hrs",0]
[]
["31","d)","Artisan","Hrs",0]
[]
["32","g)","Leading Hand","Hrs",0]
[]
["33","i)","Labourer","Hrs",0]
[]
[null,null,"SECTION D - SPECIFIC PRELIMINARIES- HEALTH AND SAFETY","H2"]
[]
["34",null,"The contractor shall comply with all the requirements set out in the Construction Regulations, 2014 issued under the Occupational Health and Safety Act 1993 (Act no 85 of 1993) The contractor shall comply with all the requirements set out in the Mine Health and Safety act 29 of 1996It is required of the contractor to thoroughly study the Health and Safety Specification as set out in the Section C2.2, it must be read together with and deemed to be incorporated under this section of the Bills of Quantities / Lump sum documentThe Contractor must take note that compliance with the Occupational Health and Safety Act, Construction regulations and Health and Safety Specification is compulsory. In the event of partial or total non compliance, the principal agent Notwithstanding the provision of Clause A31.0 of Section A (Preliminaries) or any other clause to the contrary, reserves the right to delay issuing any progress payment certificate until the contractor provides satisfactory proof of compliance. The contractor shall not be entitled to any compensation of whatsoever nature, including interest, due to such delay of payment.Provision for pricing of the Occupational Health and Safety Act, Construction Regulations and Health and Safety Specification is made under this clause and it is explicitly pointed out that all requirements of the aforementioned are deemed to be priced hereunder including for the SMME Subcontractors, domestic & nominated Subcontractors. No additional claims in this regard shall be entertained.The Legal requirements contemplated in Construction Regulation CR (1) (g) “A client must ensure that potential principal contractors submitting tenders, have made adequate provision for the cost of health and safety measures” And CR 5(1) (h) “A Client must ensure that the principal contractor to be appointed has the necessary competencies and resource to carry out the construction work safety” Shall apply and failure to price the Health and Safety items will result in the tender being deemed non -  responsive The contractors attention is further drawn to Section 41 of the OCCUPATIONAL HEALTH AND SAFETY ACT NO.85 1993 : THIS ACT NOT AFFECTED BY AGREEMENT Subject to the provisions of section 10 (4) and 37 (2), a provision of this Act or a condition specified in any notice or direction issued there under or subjects to which exemption was granted to any person under section 40, shall not be affected to any condition of any agreement whether such agreement was entered into before or after the commencement if this Act or before or after the imposition of any such condition, as the case may be. Prior to pricing the Contractor MUST FAMILIARIZE HIM / HERSELF WITH THE OCCUPATIONAL HEALTH AND SAFETY ACT NO. 85 1993 as well as the Construction Regulations, 2014, other Relevant Regulations and Standards.Prior to pricing the Contractor MUST FAMILIARIZE HIM / HERSELF WITH THE MINE HEALTH AND SAFETY ACT NO. 20 of 1996","Item",0]
[]
["35",null,"Notice the Provincial Director Department of Labour in writing of the commencement of construction work with and including submission of a letter or receipt and acknowledgement of the aforementioned notice by the director or his / her representative F……………V…………T……………","Item",0]
[]
["36",null,"Protection of existing and/or partially occupied Works the Contractor shall provide all reasonable temporary measures to protect/isolate the existing and/or sections of the occupied Works and remove such measures on completion","Item",0]
[]
[null,null,"Medicals, Screening and registration ","H3"]
[]
["37",null,"Allow for the medical test at the cost of R1 000 per employee. Contractor to make allowance for all employees to be used on this project.","Sum/Pr",1]
[]
[]
[]
[null,null,"Compliance with OHS Act and Regulations (Including the Construction Regulations 2003)","H3"]
[]
["40",null,"(a) Contractor's time-related obligations in respect of complying with the Occupational Health and Safety Act and Construction Regulations.","Month",6]
[]
["41",null,"Compliance with Environmental Requirements NEMA (Act No. 107 of 1995 and ECA No. 73 of 1989) Cost for compliance with Environmental Requirements","Month",6]
[]
["42",null,"(b) Provision of Full-Time Health & Safety Officer.","Month",6]
[]
["43",null,"(c) Provision of Full-Time Health & Safety representative. (Contractor to note that for every contractor with more than 20 employees there is a need for health and safety representative)","Month",6]
[]
[null,null,"Provide, supply and maintain for each worker the following SANS approved personal Protective equipment & clothing  as per the site - Specific risk assessment:","H3"]
[]
["44",null,"Hard Hat (High Density polyethylene with 6-point lining) F……………………V…………………T…………………","Item",1]
[]
["45",null,"Overall / Work suit (100% Cotton) F:.......................... V:....................... T:.........................","Item",1]
[]
["46",null,"High Visibility reflecting vest and  / or bibs F……………………V………………T…………......","Item",1]
[]
["47",null,"Safety boot / shoes  (Steel -  toes) F………………………V……………….T………………...","Item",1]
[]
["48",null,"Ear Plugs/Ear Muffs F…………V…………T…………","Item",1]
[]
[null,null,"Provide, supply and maintain for each worker the following SANS approved personal Protective equipment & clothing  as per the site - Specific risk assessment for covid 19 preventions:","H3"]
[]
["49",null,"(b) Provision of Full-Time Health & Safety Officer.","Month",6]
[]
["50",null,"(c) Provision of Full-Time Health & Safety Representative.","Month",6]
[]
["51",null,"Disposable Mask F……………………V………………T………………………","Item",1]
[]
["52",null,"Sanitizers F……………………V………………T………………………","Item",1]
[]
["53",null,"Infra red Gun F……………………V………………T………………………","Item",0]
[]
["54",null,"Additional Eating/ resting space F……………………V………………T………………………","Item",1]
[]
[null,null,"Programme for the Works","H3"]
[]
["55",null,"Disturbance the Contractor shall execute the Works with a; minimum of disturbance to adjourning premises, any parts of the Works already handed over and the occupants of those premises and/or parts.  Any specific requirements are stated in the Works information","Item",0]
[]
[null,null,"SUMMARY OF CATEGORIES","H2"]
[]
[null,null,"Category: Fixed\t\tR .................................  Category: Value\t\tR .................................  Category: Time\t\tR .................................  ",null,0]
[]
[null,null,"Sub Total ",null,0]

{"sheet":"ALTERATIONS","index":1,"n_rows":125,"n_cols":7,"rows_kept":125}
["ITEM NO","PAY REF","DESCRIPTION","UNIT","QUANTITY","RATE","AMOUNT"]
[null,null,"BILL NO 1","H1"]
[]
[null,null,"ALTERATIONS","H1"]
[]
[null,null,"SUPPLEMENTARY PREAMBLES","H2"]
[]
[null,null,"View site","H4"]
[]
[null,null,"Before submitting his tender the contractor shall visit the site and satisfy himself as to the nature and extent of the work to be done and the value of the materials contained in the buildings or portions of the buildings to be demolished.  No claim for any variations of the contract sum in respect of the nature and extent of the work or of inferior or damaged materials will be entertained",null,0]
[]
[null,null,"General","H4"]
[]
[null,null,"We shall carry out the whole of the works with as little mess and noise as possible and with a minimum of disturbance to adjoining premises and their tenants.  He shall provide proper protection and provide, erect and remove when directed, any temporary tarpaulins that may be necessary during the progress of the works, all to the satisfaction of the client",null,0]
[]
[null,null,"Water supply pipes and other piping that may be encountered and found necessary to disconnect or cut, shall be effectually stopped off or grubbed up and removed, and any new connections that may be necessary shall be made with proper fittings, to the satisfaction of the client",null,0]
[]
[null,null,"Doors, fanlights, fittings, frames, linings, etc which are to be re-used shall be thoroughly overhauled before re fixing including taking off, easing and rehanging, cramping up, re-wedging as required and making good cramps, dowels, etc, and easing, oiling, adjusting and repairing ironmongery as necessary, replacing any glass damaged in removal or subsequently and stopping up all nail and screw holes with tinted plastic wood to match timber, unless otherwise described. Re-painting or re-varnishing is given separately",null,0]
[]
[null,null,"Prices for taking out of doors, windows, etc shall include for removal of all beads, architraves, ironmongery, etc",null,0]
[]
[null,null,"With regard to building up of openings in existing walls, cement screeds and pavings, granolithic, tops of walls, etc, shall be levelled and prepared for raising of brickwork",null,0]
[]
[null,null,"Making good of finishes shall include making good of the surfaces onto which the new finishes are applied, where necessary",null,0]
[]
[null,null,"We will have take all dimensions affecting the existing buildings on the site and he will be held solely responsible for the accuracy of all such dimensions where used in the manufacture of new items (doors, windows, fittings, etc)",null,0]
[]
[null,null,"REMOVAL OF EXISTING WORK","H2"]
[]
[null,null,"Breaking down and removing brickwork etc","H4"]
[]
["1",null,"Mass brickwork","m3",100,null,{"$f":"E32*F32","v":0}]
[]
["2",null,"Half brick walls","m2",50,null,{"$f":"E34*F34","v":0}]
[]
["3",null,"Half brick walls to bath tubs","m2",8,null,{"$f":"E36*F36","v":0}]
[]
["4",null,"Canopy","No",1,null,{"$f":"E38*F38","v":0}]
[]
[5,null,"Relocate Hose Reel","No",1,null,{"$f":"E40*F40","v":0}]
[]
[6,null,"Remove fire stair case and make good","No",1,null,{"$f":"E42*F42","v":0}]
[null,null,"Carefully take out and removing doors, windows, etc, including thresholds, sills, etc (building up openings and making good finishes elsewhere)","H4"]
[]
["7",null,"Timber single door and frame 900 x 2700mm high overall from one brick wall ","No",15,null,{"$f":"E45*F45","v":0}]
[]
["8",null,"Timber window frame 900 x 1220mm high overall from one brick wall ","No",15,null,{"$f":"E47*F47","v":0}]
[]
[null,null,"Taking down and removing roofs, floors, panelling, ceilings, partitions, etc","H4"]
[]
["9",null,"Gypsum plasterboard ceilings, including cornices, timber brandering, to remain etc","m2",200,null,{"$f":"E51*F51","v":0}]
[]
[null,null,"Carefully take out and removing sundry joinery work, fittings, etc and hand over to client for storage","H4"]
[]
[null,null,"Taking up and removing wood block floor coverings, vinyl floor coverings, carpets, etc and preparing screeds for new floor coverings","H4"]
[]
["10",null,"Remove Carpet","m2",50,null,{"$f":"E57*F57","v":0}]
[]
[null,null,"Taking out and removing ironmongery","H4"]
[]
["11",null,"Mortice lockset from timber door","No",15,null,{"$f":"E61*F61","v":0}]
[]
["12",null,"Door closer from timber door and frame","No",15,null,{"$f":"E63*F63","v":0}]
[]
["13",null,"Towel rail not exceeding ?mm long from wall","No",4,null,{"$f":"E65*F65","v":0}]
[]
["14",null,"Toilet paper holder from wall","No",4,null,{"$f":"E67*F67","v":0}]
[]
["15",null,"Soap holder from wall","No",4,null,{"$f":"E69*F69","v":0}]
[]
[null,null,"Hacking up/off and removing granolithic, screeds, plaster, etc from concrete or brickwork and preparing surfaces for new screed, plaster, tile finishes, etc","H4"]
[]
["16",null,"25mm Plaster from walls","m2",150,null,{"$f":"E73*F73","v":0}]
[]
[null,null,"Hacking up/off and removing ceramic tile floor and wall finishes including  removing mortar bed or backing and preparing concrete or brick surfaces for new screed, plaster or tile finishes","H4"]
[]
["17",null,"300 x 300mm Tiles to floors and prepare floors for new floor finish","m2",40,null,{"$f":"E77*F77","v":0}]
[]
["18",null,"Tiles to treads and risers of stairs","m2",40,null,{"$f":"E79*F79","v":0}]
[]
["19",null,"200x 100mm Tiles to walls and prepare walls for new finish","m2",40,null,{"$f":"E81*F81","v":0}]
[]
[null,null,"Taking  out and removing piping, sanitary fittings, etc, including cutting off as necessary, disconnecting  piping  from fittings  and  making good floor and wall finishes (making good tiling and paintwork elsewhere)","H4"]
[]
["20",null,"Steel piping not exceeding 50mm diameter","m",50,null,{"$f":"E85*F85","v":0}]
[]
["21",null,"PVC piping exceeding 50mm and not exceeding 100mm diameter","m",100,null,{"$f":"E87*F87","v":0}]
[]
["22",null,"Vitreous china WC pan with cistern, including short lengths of piping, etc","No",4,null,{"$f":"E89*F89","v":0}]
[]
["23",null,"Wash hand basing drainer and short lengths of piping, etc","No",4,null,{"$f":"E91*F91","v":0}]
[]
["24",null,"Mirror 605 x 460mm high from wall","No",4,null,{"$f":"E93*F93","v":0}]
[]
["25",null,"Opening 900 x 2032m high overall in One brick wall","No",15,null,{"$f":"E95*F95","v":0}]
[]
["26",null,"Opening 900 x 1221m high overall in One brick wall","No",15,null,{"$f":"E97*F97","v":0}]
[]
[null,null,"Sundries","H4"]
[]
["27",null,"Cutting toothings and bonding new brickwork to existing","m2",7,null,{"$f":"E101*F101","v":0}]
[]
[null,null,"MAKING GOOD OF FINISHES, ETC","H2"]
[]
[null,null,"Making good gypsum plasterboard ceilings and timber brandering","H4"]
[]
["28",null,"Ceilings in patches","m2",5,null,{"$f":"E107*F107","v":0}]
[]
[null,null,"Making good cement screeds","H4"]
[]
["29",null,"25mm Thick on floors in patches","m2",50,null,{"$f":"E111*F111","v":0}]
[]
[null,null,"Making good internal cement plaster","H4"]
[]
["30",null,"Walls in patches","m2",200,null,{"$f":"E115*F115","v":0}]
[]
["31",null,"Walls in patches to narrow widths","m2",25,null,{"$f":"E117*F117","v":0}]
[]
[null,null,"OPENINGS THROUGH EXISTING WALLS ETC","H2"]
[]
[null,null,"Breaking out for and forming openings through brick walls for new doors and frames, including brick lintels, making good cement plaster on one side and into reveals and face brickwork on other side and into reveals and with 20 MPa concrete thresholds with steel trowelled finish (new doors and frames and making good plaster and paintwork elsewhere)","H4"]
[]
["32",null,"Opening for door with steel frame 900 x 2100m high overall through one brick wall","No",15,null,{"$f":"E123*F123","v":0}]
[]
[null,null,"Sub total ",null,0,null,{"$f":"SUM(G3:G124)","v":0}]

{"sheet":"CONC,FORMWORK&REINFORCEMENT","index":2,"n_rows":118,"n_cols":7,"rows_kept":118}
["ITEM NO","PAY REF","DESCRIPTION","UNIT","QUANTITY","RATE","AMOUNT"]
[null,null,"BILL NO 2","H1"]
[]
[null,null,"CONCRETE, FORMWORK AND REINFORCEMENT","H1"]
[]
[null,null,"PREAMBLES","H2"]
[]
[null,null,"Tenderers are referred to the relevant clauses in the Model Preambles for Trades (Latest Edition) as published by the Association of South African Quantity Surveyors and to the Supplementary Preambles which are incorporated in these Bills of Quantities."]
[]
[null,null,"SUPPLEMENTARY PREAMBLES","H2"]
[]
[null,null,"Cost of tests","H3"]
[]
[null,null,"The costs of making, storing and testing of concrete test cubes as required under clause 7 \"Tests\" of SABS 1200 G shall include the cost of providing cube moulds necessary for the purpose, for testing costs and for submitting reports on the tests to the principal agent. The testing shall be undertaken by an independent firm or institution nominated by the contractor to the approval of the principal agent. (Test cubes are measured separately)",null,0]
[]
[null,null,"Formwork","H3"]
[]
[null,null,"Descriptions of formwork shall be deemed to include use and waste only (except where described as \"left in\" or \"permanent\"), for fitting together in the required forms, wedging, plumbing and fixing to true angles and surfaces as necessary to ensure easy release during stripping and for reconditioning as necessary before re-use. The vertical strutting shall be carried down to such construction as is sufficiently strong to afford the required support without damage and shall remain in position until the newly constructed work is able to support itself",null,0]
[]
[null,null,"Formwork to soffits of solid slabs etc shall be deemed to be to slabs not exceeding 250mm thick unless otherwise described",null,0]
[]
[null,null,"Formwork to soffits of slabs, beams, etc shall be deemed to be propped up exceeding 1,5m and not exceeding 3,5m high unless otherwise described",null,0]
[]
[null,null,"Formwork to sides of bases, pile caps, ground beams, etc will only be measured where it is prescribed by the engineer for design reasons. Formwork necessitated by irregularity or collapse of excavated faces will not be measured and the cost thereof shall be deemed to be included in the allowance for taking the risk of collapse of the sides of the excavations, provision for which is made in \"Earthworks\"",null,0]
[]
[null,null,"Trades Names","H3"]
[]
[null,null,"All trade names deemed to mean \"or similar approved\" (prior to tender closing date)",null,0]
[]
[null,null,"REINFORCED CONCRETE","H2"]
[]
[null,null,"25MPa/20mm concrete","H3"]
[]
["1",null,"Slabs, including beams and inverted beams","m3",0,null,{"$f":"E34*F34","v":0}]
[]
[null,null,"CONCRETE SUNDRIES","H2"]
[]
[null,null,"Finishing top surfaces of concrete smooth with a wood float/ steel trowel","H3"]
[]
["2",null,"Surface beds, slabs, etc","m2",0,null,{"$f":"E40*F40","v":0}]
[]
[null,null,"ROUGH FORMWORK","H2"]
[]
[null,null,"Rough formwork to soffits","H3"]
[]
["3",null,"Slabs propped up exceeding 1.5m and not exceeding 3.5m high","m2",0,null,{"$f":"E46*F46","v":0}]
[]
[null,null,"MOVEMENT JOINTS ETC","H2"]
[]
[null,null,"Expansion joints with 10mm jointex filler with tear-off strip between vertical concrete surfaces, including necessary formwork","H3"]
[]
["4",null,"Not exceeding 300mm high through surface beds","m",0,null,{"$f":"E52*F52","v":0}]
[]
[null,null,"Saw cut joints","H3"]
[]
["5",null,"50 x 3mm Saw cut joints in top of concrete","m",0,null,{"$f":"E56*F56","v":0}]
[]
[null,null,"REINFORCEMENT","H2"]
[]
[null,null,"High tensile steel reinforcement to structural concrete work","H3"]
[]
["6",null,"Various diameter bars","t",0,null,{"$f":"E62*F62","v":0}]
[]
[null,null,"Sub total ",null,0,null,{"$f":"SUM(G2:G63)","v":0}]
[]
[null,null,"BILL NO 3","H1"]
[]
[null,null,"MASONRY","H1"]
[]
[null,null,"PREAMBLES","H2"]
[]
[null,null,"Tenderers are referred to the relevant clauses in the Model Preambles for Trades (Latest Edition) as published by the Association of South African Quantity Surveyors and to the Supplementary Preambles which are incorporated in these Bills of Quantities.",null,0]
[]
[null,null,"SUPPLEMENTARY PREAMBLES","H2"]
[]
[null,null,"Sizes in descriptions","H3"]
[]
[null,null,"Where sizes in descriptions are given in brick units, \"one brick\" shall represent the length and \"half brick\" the width of a brick",null,0]
[]
[null,null,"Face bricks","H3"]
[]
[null,null,"Bricks shall be ordered timeously to obtain uniformity in size and colour",null,0]
[]
[null,null,"Pointing","H3"]
[]
[null,null,"Descriptions of recessed pointing to fair face brickwork and face brickwork shall be deemed to include square recessed, hollow recessed, weathered pointing, etc",null,0]
[]
[null,null,"Rates","H3"]
[]
[null,null,"The rates for all masonry shall be deemed to include for all rough raking and circular cutting and waste, cutting to form birdsmouth angles or squint quoins, etc. ",null,0]
[]
[null,null,"Samples","H3"]
[]
[null,null,"Samples of all masonry building units, shall consist of a minimum of 6 units",null,0]
[]
[null,null,"Trades Names","H3"]
[]
[null,null,"All trade names deemed to mean \"or similar approved\" (prior to tender closing date)",null,0]
[]
[null,null,"BRICKWORK","H2"]
[]
[null,null,"SUPERSTRUCTURE","H2"]
[]
[null,null,"Brickwork of NFP bricks in class II mortar","H3"]
[]
["1",null,"Half Brick walls","m2",0,null,{"$f":"E106*F106","v":0}]
[]
["2",null,"One Brick walls","m2",0,null,{"$f":"E108*F108","v":0}]
[]
[null,null,"Brickwork reinforcement","H3"]
[]
["3",null,"75mm Wide reinforcement built in horizontally","m",0,null,{"$f":"E112*F112","v":0}]
[]
[null,null,"Prestressed fabricated concrete lintels including necessary temporary supports","H3"]
[]
["4",null,"110 x 70mm Lintels in lengths not exceeding 3m","m",0,null,{"$f":"E116*F116","v":0}]
[]
[null,null,"Sub total ",null,0,null,{"$f":"SUM(G101:G117)","v":0}]

{"sheet":"MASONRY","index":3,"n_rows":54,"n_cols":7,"rows_kept":54}
["ITEM NO","PAY REF","DESCRIPTION","UNIT","QUANTITY","RATE","AMOUNT"]
[null,null,"BILL NO 3","H1"]
[]
[null,null,"MASONRY","H1"]
[]
[null,null,"PREAMBLES","H2"]
[]
[null,null,"Tenderers are referred to the relevant clauses in the Model Preambles for Trades (Latest Edition) as published by the Association of South African Quantity Surveyors and to the Supplementary Preambles which are incorporated in these Bills of Quantities.",null,0]
[]
[null,null,"SUPPLEMENTARY PREAMBLES","H2"]
[]
[null,null,"Sizes in descriptions","H3"]
[]
[null,null,"Where sizes in descriptions are given in brick units, \"one brick\" shall represent the length and \"half brick\" the width of a brick",null,0]
[]
[null,null,"Face bricks","H3"]
[]
[null,null,"Bricks shall be ordered timeously to obtain uniformity in size and colour",null,0]
[]
[null,null,"Pointing","H3"]
[]
[null,null,"Descriptions of recessed pointing to fair face brickwork and face brickwork shall be deemed to include square recessed, hollow recessed, weathered pointing, etc",null,0]
[]
[null,null,"Rates","H3"]
[]
[null,null,"The rates for all masonry shall be deemed to include for all rough raking and circular cutting and waste, cutting to form birdsmouth angles or squint quoins, etc. ",null,0]
[]
[null,null,"Samples","H3"]
[]
[null,null,"Samples of all masonry building units, shall consist of a minimum of 6 units",null,0]
[]
[null,null,"Trades Names","H3"]
[]
[null,null,"All trade names deemed to mean \"or similar approved\" (prior to tender closing date)",null,0]
[]
[null,null,"BRICKWORK","H2"]
[]
[null,null,"SUPERSTRUCTURE","H2"]
[]
[null,null,"Brickwork of NFP bricks in class II mortar","H3"]
[]
["1",null,"Half Brick walls","m2",27,null,{"$f":"E42*F42","v":0}]
[]
["2",null,"One Brick walls","m2",27,null,{"$f":"E44*F44","v":0}]
[]
[null,null,"Brickwork reinforcement","H3"]
[]
["3",null,"75mm Wide reinforcement built in horizontally","m",120,null,{"$f":"E48*F48","v":0}]
[]
[null,null,"Prestressed fabricated concrete lintels including necessary temporary supports","H3"]
[]
["4",null,"110 x 70mm Lintels in lengths not exceeding 3m","m",19,null,{"$f":"E52*F52","v":0}]
[]
[null,null,"Sub total ",null,0,null,{"$f":"SUM(G37:G53)","v":0}]

{"sheet":"WATERPROOFING","index":4,"n_rows":26,"n_cols":7,"rows_kept":26}
["ITEM NO","PAY REF","DESCRIPTION","UNIT","QUANTITY","RATE","AMOUNT"]
[null,null,"BILL NO 4","H1"]
[]
[null,null,"WATERPROOFING","H1"]
[]
[null,null,"PREAMBLES","H2"]
[]
[null,null,"Tenderers are referred to the relevant clauses in the Model Preambles for Trades (Latest Edition) as published by the Association of South African Quantity Surveyors and to the Supplementary Preambles which are incorporated in these Bills of Quantities.",null,0]
[]
[null,null,"SUPPLEMENTARY PREAMBLES","H2"]
[]
[null,null,"Waterproofing","H3"]
[]
[null,null,"Waterproofing of roofs, basements, etc shall be laid under a ten year guarantee. Waterproofing to roofs shall be laid to even falls to outlets etc with necessary ridges, hips and valleys. Descriptions of sheet or membrane waterproofing shall be deemed to include additional labour to turn-ups and turn-downs",null,0]
[]
[null,null,"Trades Names","H3"]
[]
[null,null,"All trade names deemed to mean \"or similar approved\" (prior to tender closing date)",null,0]
[]
[null,null,"DAMPPROOFING OF WALLS AND FLOORS","H2"]
[]
[null,null,"One layer of 375 micron \"Consol Plastics Brikgrip DPC\" embossed damp proof course","H3"]
[]
["1",null,"In walls and under sills","m2",5,null,{"$f":"E24*F24","v":0}]
[]
[null,null,"Sub total ",null,0,null,{"$f":"SUM(G3:G25)","v":0}]

{"sheet":"CARPENTRY&JOINERY","index":5,"n_rows":64,"n_cols":7,"rows_kept":64}
["ITEM NO","PAY REF","DESCRIPTION","UNIT","QUANTITY","RATE","AMOUNT"]
[null,null,"BILL NO 5","H1"]
[]
[null,null,"CARPENTRY AND JOINERY","H1"]
[]
[null,null,"PREAMBLES","H2"]
[]
[null,null,"Tenderers are referred to the relevant clauses in the Model Preambles for Trades (Latest Edition) as published by the Association of South African Quantity Surveyors and to the Supplementary Preambles which are incorporated in these Bills of Quantities.",null,0]
[]
[null,null,"SUPPLEMENTARY PREAMBLES","H2"]
[]
[null,null,"Roof Construction","H3"]
[]
[null,null,"a. All the roof trusses, rafters etc. to be designed and constructed with softwood structural timber to include for live loads, wind loads and to take 'Klip-tite' roof covering, purlins and gypsum plasterboard ceilings with brandering.  Each roof truss shall have all its members accurately cut and close butted together and rigidly fixed by CSIR approved patended galvanized metal spiked connectors, fixed on both sides of each intersection by an approved method, all in accordance with the manufacturer's instructions.b.  Upon completion of the contract the Registered Professional Engineer must issue to the Architect a certificate to effect that the roof has been erected in accordance with his approved design, under his supervision and that the entire roof is structurally stable. c. The lump sum price for the roof trusses and purlins or battens (bottom purlin or tilting fillet to be wrought) shall include for the design and supervision by a Registered / Professional Engineer and for all necessary runners, overhangs wrought all round and trimmed and splay cut as required, braces, hoisting and fixing, wall plates, fascia, barge boards, roof coverings, etc d.  The tenderer's attention is drawn to the fact that the detail drawings included at the back of these Bills of Quantities only represents the overall size and bearing points of the trusses and not the required design. ",null,0]
[]
[null,null,"e.  Erection must be carried out as described in \"The Erection and Bracing of Timber Roof Trusses\" published by the Truss Plate Association of South Africa Ltd. and the National Timber Research Institute, CSIR.  f.  Descriptions of roof trusses shall be deemed to include for design, manufacture, supply, hoisting and fixing in position, trimming ends, notching, etc. and for any temporary bracing.",null,0]
[]
[null,null,"Fixing","H3"]
[]
[null,null,"Items described as \"plugged\" shall be deemed to include screwing to fibre, plastic or metal plugs at not exceeding 500mm centres",null,0]
[]
[null,null,"Descriptions","H3"]
[]
[null,null,"The term \"screwed on\" shall mean the countersunk screwing of one timber member to another.",null,0]
[]
[null,null,"The term \"plugged\" shall mean the countersunk screwing of a timber member to and including plastic plugs in brickwork or concrete.",null,0]
[]
[null,null,"Joinery ","H3"]
[]
[null,null,"Heads of screws and nails in exposed faces of joinery shall be countersunk and pelleted.  All pelleting shall be done with material to suit the exposed face of the component in which it occurs. ",null,0]
[]
[null,null,"Rates","H3"]
[]
[null,null,"Heads of screws and nails in exposed faces of joinery shall be countersunk and pelleted.  All pelleting shall be done with material to suit the exposed face of the component in which it occurs.Prices for plugging are to include for approved patent wall plugs in brickwork or concrete.Prices for eaves covering, ceilings, floors, joinery, etc. are to include for notching and square metre and waste.Prices for material items such as skirtings, cornices, cover strips, edge strips, etc. given in linear metre are to include for mitres, fitted intersections, stopped ends, etc.Prices for labour items such as rounded angles, rebates, grooves, chamfers, moulded edges, etc. given in linear metre are to include for angles, ends, etc. Fittings are measured net and prices for all joinery work are to include for all labours in planing, rebating, moulding, square cutting and waste, mitres, etc. and for all work in connecting by mortice and tennon, housing flush, pinning, etc. as may be required and for all screws, nails, etc. and glueing together",null,0]
[]
[null,null,"Trades Names","H3"]
[]
[null,null,"All trade names deemed to mean \"or similar approved\" (prior to tender closing date)"]
[]
[null,null,"DOORS ETC","H2"]
[]
[null,null,"40mm Door with safety glazing viewing panel or Glazed Aluminium","H3"]
[]
["1",null,"40mm Door 1300 x 2125mm high (D1) with safety glazing viewing panel or Glazed aluminium","No",3,null,{"$f":"E44*F44","v":0}]
[]
["2",null,"40mm Door 900 x 2125mm high (D2) with  400 x 750 with safety glazing viewing panels mounted 1.1m above floor.","No",3,null,{"$f":"E46*F46","v":0}]
[]
[3,null,"40mm Door 900 x 2125mm high (D3) 2hr Fire rated door with self closing mechanism to comply with SANS 10400T opening outwards.","No",3,null,{"$f":"E48*F48","v":0}]
[]
["4",null,"40mm Door 900 x 2125mm high (D4) with safety glazing viewing panel or Glazed aluminium","No",1,null,{"$f":"E50*F50","v":0}]
[]
[5,null,"40mm Door 900 x 2125mm high (D5) solid core timber door with 1 &  1/2 pairs of butt hinges ","No",3,null,{"$f":"E52*F52","v":0}]
[]
["6",null," 1500 x 2125mm high (D6) Aluminium two panel sliding/Folding door(Frosted glazing)","No",1,null,{"$f":"E54*F54","v":0}]
[]
[null,null,"JOINERY FITTINGS","H1"]
[]
[null,null,"Kitchen Cupboards","H3"]
[]
["7",null,"Allow amount for the kitchen cupboards per kitchen","No",1,null,{"$f":"E60*F60","v":0}]
[]
["8",null,"Allow sum for Granite top","No",1,null,{"$f":"E62*F62","v":0}]
[]
[null,null,"Sub total ",null,0,null,{"$f":"SUM(G2:G63)","v":0}]

{"sheet":"CEILINGS&PARTITIONS","index":6,"n_rows":50,"n_cols":7,"rows_kept":50}
["ITEM NO","PAY REF","DESCRIPTION","UNIT","QUANTITY","RATE","AMOUNT"]
[null,null,"BILL NO. 6","H1"]
[]
[null,null,"CEILINGS, PARTITIONS AND ACCESS FLOORING (PROVISIONAL)","H1"]
[]
[null,null,"PREAMBLES","H2"]
[]
[null,null,"Tenderers are referred to the relevant clauses in the \"Specification of Materials and Methods\" (PW371-A and PW371-B) Second Edition July 2013 which shall be deemed to be incorporated in these bills of quantities and the Supplementary Preambles which are incorporated in these Bills of Quantities.",null,0]
[]
[null,null,"SUPPLEMENTARY PREAMBLES","H2"]
[]
[null,null,"Fixing","H3"]
[]
[null,null,"Items described as \"nailed\" shall be deemed to be fixed with hardened steel nails or pins, or to be shot-pinned, to brickwork or concrete",null,0]
[]
[null,null,"Items described as \"plugged\" shall be deemed to include screwing to fibre, plastic or metal plugs at not exceeding 500mm centres, and where described as \"bolted\", the bolts have been given elsewhere",null,0]
[]
[null,null,"Ceilings","H3"]
[]
[null,null,"Unless otherwise described ceilings shall be deemed to be horizontal",null,0]
[]
[null,null,"Steel components","H3"]
[]
[null,null,"All steel components for ceilings, partitions, etc are to be galvanised in accordance with SANS 121",null,0]
[]
[null,null,"Trades Names","H3"]
[]
[null,null,"All trade names deemed to mean \"or similar approved\" (prior to tender closing date)",null,0]
[]
[null,null,"CEILING, ETC","H2"]
[]
[null,null,"SUSPENDED CEILING","H2"]
[]
[1,null,"1200 X 600 X 6mm Suspended ceiling panels, calcium silicate vinyl finish","m2",200,null,{"$f":"E34*F34","v":0}]
[]
[2,null,"7mm \"Rhino\" gypsum plasterboard fixed to furring channels or brandering at centres no greater than 400mm centres","m2",50,null,{"$f":"E36*F36","v":0}]
[]
["3",null,"Ceilings including 38 x 38mm sawn \"SA Pine\" brandering at 400mm centres in one direction only to trusses and all perimeter edges","m",150,null,{"$f":"E38*F38","v":0}]
[]
[null,null,"FIXED PARTITIONS"]
[]
[4,null,"76mm \"Capco\" 'Beta' drywall partitions comprising of 51mm and 52mm steel tracks and studs with one layer of 12,5mm Gyproc Taper-edge Wallboard on each side, with top edge fitted with drywall aluminium wall channel"]
[]
[5,null,"Partitions 2,72m high with top and bottom tracks plugged, with 45 x 45 x 300mm long x 900mm high glazed aluminium viewing panel comprising of 6,5mm clear safety glass framed all round with aluminium glazed sections and beads (viewing panel measured elsewhere)","m",30,null,{"$f":"E44*F44","v":0}]
[]
[6,null,"Extra over partition 2,72m high for vertical abutment","No",8,null,{"$f":"E46*F46","v":0}]
[]
[7,null,"40mm Door 813 x 2032mm high (D2)","No",3,null,{"$f":"E48*F48","v":0}]
[]
[null,null,"Sub total ",{"$nulls":3},{"$f":"SUM(G4:G49)","v":0}]

{"sheet":"IRONMOGERY","index":7,"n_rows":107,"n_cols":7,"rows_kept":107}
["ITEM NO","PAY REF","DESCRIPTION","UNIT","QUANTITY","RATE","AMOUNT"]
[null,null,"BILL NO. 7","H1"]
[]
[null,null,"IRONMONGERY","H1"]
[]
[null,null,"PREAMBLES","H2"]
[]
[null,null,"Tenderers are referred to the relevant clauses in the Model Preambles for Trades (Latest Edition) as published by the Association of South African Quantity Surveyors and to the Supplementary Preambles which are incorporated in these Bills of Quantities.",null,0]
[]
[null,null,"SUPPLEMENTARY PREAMBLES","H2"]
[]
[null,null,"Proprietary items","H3"]
[]
[null,null,"Where applicable the manufacturers' names or product catalogue titles are given in sub-headings preceding the items",null,0]
[]
[null,null,"On request returnable samples are to be provided to the principal agent for consideration",null,0]
[]
[null,null,"Finishes to ironmongery","H3"]
[]
[null,null,"Where applicable finishes to ironmongery are indicated by suffixes in accordance with the following list: BS Satin bronze lacquered CH Chromium plated SC Satin chromium plated SE Silver enamelled GE Grey enamelled AS Anodised silver AB Anodised bronze AG Anodised gold ABL Anodised black PB Polished brass PL Polished and lacquered PT Epoxy coated SD Sanded",null,0]
[]
[null,null,"Rates","H3"]
[]
[null,null,"Prices are to be based on the specific products/articles specified. If tenderers wish to offer alternative products/articles for certain items, these items are to be clearly marked and the alternative specification given with supporting brochures etc clarifying the features of the products/articles offered",null,0]
[]
[null,null,"HINGES, BOLTS, ETC","H2"]
[]
[null,null,"Savignac or other approved","H3"]
[]
["1",null,"Code: RH2040C 200mm Sinkless aluminium hinge ","No",150,null,{"$f":"E30*F30","v":0}]
[]
["2",null,"153mm Manual flush Bolt (Code:DFB-SC-180)","No",10,null,{"$f":"E32*F32","v":0}]
[]
[null,null,"LOCKS","H2"]
[]
[null,null,"Union or other approved","H3"]
[]
["3",null,"Code: CZ682-24-61CH\" Four lever mortice lockset complete","Sets",15,null,{"$f":"E38*F38","v":0}]
[]
["4",null,"For Steel door Stuart lever on back plate with polished aluminium finish and profile cylinder sash lock with drawback and latch 330/51 with chrome plated steel for end with 66mm master keyed single cylinder (862/66/78) finished in nickel plated brass with nickel plated rebate conversion set (130/81) and satin chrome lever flush bolt (120/150)","Sets",15,null,{"$f":"E40*F40","v":0}]
[]
["5",null,"Code: 2X28SN Double cylinder lockset","Sets",15,null,{"$f":"E42*F42","v":0}]
[]
["6",null,"DWC-006 stainless steel WC indicator with 79mm turn knob for physically impaired","No",3,null,{"$f":"E44*F44","v":0}]
[]
["7",null,"Code: CZ80941SCR Satin chrome bathroom indicator bolt","No",3,null,{"$f":"E46*F46","v":0}]
[]
[null,null,"Yale or other approved","H3"]
[]
["8",null,"Code: CZ69424525CH Three level mortice lockset complete","No",0,null,{"$f":"E50*F50","v":0}]
[]
["9",null,"Code: 40CY3-5716-3101 Satin silver knob cylinder  lockset complete ","No",15,null,{"$f":"E52*F52","v":0}]
[]
[null,null,"Assa Abloy or other approved","H3"]
[]
["10",null,"Code: L2141-78SS Four-lever deadlock","No",1,null,{"$f":"E56*F56","v":0}]
[]
["11",null," \"Code: QR35X85MM-SS\" Roller catch and deadlock","No",4,null,{"$f":"E58*F58","v":0}]
[]
["12",null,"Code: 452-22 Brass Cylinder Cupboard deadlock lockset complete ","No",48,null,{"$f":"E60*F60","v":0}]
[]
[null,null,"HANDLES","H2"]
[]
[null,null,"Dorma or similar equal approved","H3"]
[]
["13",null,"Code: PHD-BB-225-22 Stainless steel sandpaper pull handles with back plates","No",30,null,{"$f":"E66*F66","v":0}]
[]
["14",null,"SH810 solid stainless steel lever handles on rose with bathroom/WC escutcheon","Sets",15,null,{"$f":"E68*F68","v":0}]
[]
["15",null,"Aluminium pull handle plate as \"Union AL5D66LE06-465W  Dove\".","No",30,null,{"$f":"E70*F70","v":0}]
[]
["16",null," \"Code: QH26WH\" 85mm Aluminium lever handles","Pairs",0,null,{"$f":"E72*F72","v":0}]
[]
[null,null,"PUSH PLATES AND KICKING PLATES","H2"]
[]
[null,null,"Assa Abloy or other approved","H3"]
[]
["17",null,"25mm x 44mm x 900 Gradus 190 'L' shaped door corner guards, in Grade 304 Stainless steel adn satin finish fixed with adhesive as per manufactures instruction. Custom lengths to be cut where push plate are used. Edges are to be rebated flush with side door.","No",0,null,{"$f":"E78*F78","v":0}]
[]
["18",null,"DPP-SS 161 1,2mm push plate brushed stainless steel (with cylinder cutout)","No",30,null,{"$f":"E80*F80","v":0}]
[]
["19",null,"DPP-SS 161 1,2mm x 500 x 150mm push plate brushed stainless steel","No",30,null,{"$f":"E82*F82","v":0}]
[]
["20",null,"DPP-SS 161 1,2mm x 200 x 150mm push plate brushed stainless steel","No",30,null,{"$f":"E84*F84","v":0}]
[]
["21",null,"DPP-SS 161 1.2mm x 500mm high x150mm wide push plate stainless steel (as indicated on schedule)","No",0,null,{"$f":"E86*F86","v":0}]
[]
[null,null,"DOOR CLOSERS","H2"]
[]
[null,null,"Union or other approved","H3"]
[]
["22",null," \"Code: 7836\" Heavy duty door closer","No",5,null,{"$f":"E92*F92","v":0}]
[]
[null,null,"Assa Abloy or other approved","H3"]
[]
["23",null,"Code: DC300DA Rack and pinion door closer with link arm and delay action function","No",5,null,{"$f":"E96*F96","v":0}]
[]
[null,null,"SUNDRIES","H2"]
[]
[null,null,"Savignac or other approved","H3"]
[]
["24",null," \"Code: SAVSS07HDS\" Half round door stop, plugged","No",15,null,{"$f":"E102*F102","v":0}]
[]
["25",null,"DHC-SS-031B stainless steel hat and coat hook with rubber buffer(fitted internally)","No",15,null,{"$f":"E104*F104","v":0}]
[]
[]
[null,null,"Sub total ",null,0,null,{"$f":"SUM(G3:G106)","v":0}]

{"sheet":"METALWORK","index":8,"n_rows":72,"n_cols":7,"rows_kept":72}
["ITEM NO","PAY REF","DESCRIPTION","UNIT","QUANTITY","RATE","AMOUNT"]
[null,null,"BILL NO 8","H1"]
[]
[null,null,"METALWORK","H1"]
[]
[null,null,"PREAMBLES","H2"]
[]
[null,null,"Tenderers are referred to the relevant clauses in the Model Preambles for Trades (Latest Edition) as published by the Association of South African Quantity Surveyors and to the Supplementary Preambles which are incorporated in these Bills of Quantities.",null,0]
[]
[null,null,"SUPPLEMENTARY PREAMBLES","H2"]
[]
[null,null,"Welded Joints","H3"]
[]
[null,null,"All welding and cladded electrodes shall comply with the requirements of SABS 1200H.All welded joints shall be continuous electrically welded fillet joints with a throat thickness of 6mm or equal to the thickness of the smallest profile. Any deformed steelwork caused by welding shall be rejected and no claim whatsoever will be entertained for rectification of deformed work or for repairs to damaged painting.All continuous rails, etc. shall be in long lengths with flush butt welds. ",null,0]
[]
[null,null,"Aluminium doors, windows, etc","H3"]
[]
[null,null,"Doors and windows shall comply with AAAMSA design criteria",null,0]
[]
[null,null,"Glazing shall comply with SAGGA regulations. Glass shall be type as shown on the window schedules/drawings appended to these bills of quantities (as described in the headings to window descriptions). Glass thickness shall comply with SAGGA regulations irrespective of thickness's shown on the schedules/drawings",null,0]
[]
[null,null,"Doors and windows shall be supplied with protective tape and plastic and shall be removed only once surrounding trades have been completed",null,0]
[]
[null,null,"For purpose made windows and doors, refer to drawings annexed to these bills of quantities",null,0]
[]
[null,null,"The following certificates shall be provided prior to commencement of site work:1\tA copy of the relevant AAAMSA Performance Test \tCertificate from the manufacturer/contractor \tsupplying the architectural aluminium product 2\tA Certificate of Conformance confirming that \tanodising or powder coating has been processed in \taccordance with SANS 999 and SANS 1796 \trespectively",null,0]
[]
[null,null,"3         \tA power guarantee of not less than 15 years issued by the powder manufacturer. The specific conditions contained in this guarantee shall form part of the powder coating process4\tA Certificate of Conformance confirming that glazing has been installed in accordance with SANS 0137, ensuring that safety glazing materials have been installed in the mandatory areas and that each  individual pane of safety glazing materials has been  permanently marked5\tA warranty from the manufacturer of the\tlaminated safety glass and/or hermetically \tsealed glazing units guaranteeing the products \tagainst de lamination and colour degradation for a \tperiod \tof not less than five years",null,0]
[]
[null,null,"All welding and cladded electrodes shall comply with the requirements of SABS 1200H.All welded joints shall be continuous electrically welded fillet joints with a throat thickness of 6mm or equal to the thickness of the smallest profile. Any deformed steelwork caused by welding shall be rejected and no claim whatsoever will be entertained for rectification of deformed work or for repairs to damaged painting.All continuous rails, etc. shall be in long lengths with flush butt welds. ",null,0]
[]
[null,null,"Rates","H3"]
[]
[null,null,"Prices for metalwork are to include as necessary for the manufacture, supply, delivery, setting up, hoisting, levelling and fixing in position as well as for cutting to lengths, straight cutting and waste, square notches, running joints, rivets, forming, threading, forging, turning, fitting, assembling, bolting, riveting, brazing, soldering, welding and neatly filing smooth, temporary props, etc. ",null,0]
[]
[null,null,"Trades Names","H3"]
[]
[null,null,"All trade names deemed to mean \"or similar approved\" (prior to tender closing date)",null,0]
[]
[null,null,"STEEL HANDRAILS, BALUSTRADES, ETC","H2"]
[]
[null,null,"Welded balustrades to ramps, stairs and balconies","H3"]
[]
["1",null,"Horizontal stainless steel purpose made balustrade system 1000mm high comprising 50mm diameter handrail with 12mm diameter pins on 50mm diameter stanchions  at 1000mm centres with core drilled pressed cover flanges grouted into 150mm deep core drilled holes with non shrink grout and infills of 10mm diameter horizontals rails","m",20,null,{"$f":"E44*F44","v":0}]
[]
[]
[null,null,"PRESSED STEEL DOOR FRAMES","H2"]
[]
[null,null,"1,2mm Double rebated frames suitable for half brick walls","H3"]
[]
["9",null,"Frame for door size 813 x 2032mm high","No",6,null,{"$f":"E51*F51","v":0}]
[]
[null,null,"1,6mm Double rebated frames suitable for one brick walls","H3"]
[]
["10",null,"Frame for door size 813 x 2032mm high","No",4,null,{"$f":"E55*F55","v":0}]
[]
[null,null,"ALUMINIUM WINDOWS","H2"]
[]
[null,null,"Aluminium french powder coated aluminium windowss,  complete with subframes, glass, sealing, etc and fixing to brickwork or concrete (ironmongery measured elsewhere) ","H3"]
[]
["11",null,"Awning window 01, 600 x 2125mm high complete with glazing and all ironmongery.","No",4,null,{"$f":"E61*F61","v":0}]
[]
["12",null,"Awning window 02, 600 x 3610mm long complete with glazing and all ironmongery.","No",2,null,{"$f":"E63*F63","v":0}]
[]
[null,null,"Awning window 03, 600 x 1200mm high complete with glazing and all ironmongery.","No",1,null,{"$f":"E65*F65","v":0}]
[]
[null,null,"Awning window 04, 600 x 1500mm long complete with glazing and all ironmongery.","No",1,null,{"$f":"E67*F67","v":0}]
[]
[null,null,"Awning window 05, 600 x 1500mm long complete with glazing and all ironmongery.","No",1,null,{"$f":"E69*F69","v":0}]
[]
[]
[null,null,"Sub total ",null,0,null,{"$f":"SUM(G2:G71)","v":0}]

{"sheet":"PLASTERING","index":9,"n_rows":36,"n_cols":7,"rows_kept":36}
["ITEM NO","PAY REF","DESCRIPTION","UNIT","QUANTITY","RATE","AMOUNT"]
[null,null,"BILL NO 9","H1"]
[]
[null,null,"PLASTERING","H1"]
[]
[null,null,"PREAMBLES","H2"]
[]
[null,null,"Tenderers are referred to the relevant clauses in the Model Preambles for Trades (Latest Edition) as published by the Association of South African Quantity Surveyors and to the Supplementary Preambles which are incorporated in these Bills of Quantities.",null,0]
[]
[null,null,"SUPPLEMENTARY PREAMBLES","H2"]
[]
[null,null,"Levels","H3"]
[]
[null,null,"All screeds for different floor finishes to be adjusted to ensure a continuous finished floor level throughout",null,0]
[]
[null,null,"Trades Names","H3"]
[]
[null,null,"All trade names deemed to mean \"or similar approved\" (prior to tender closing date)",null,0]
[]
[null,null,"SCREEDS","H2"]
[]
[null,null,"Screeds on concrete","H3"]
[]
["1",null,"30mm Thick on floors and landings","m2",200,null,{"$f":"E24*F24","v":0}]
[]
["2",null,"30mm Thick on treads and risers of stairs","m2",50,null,{"$f":"E26*F26","v":0}]
[]
[null,null,"INTERNAL/EXTERNAL PLASTER","H2"]
[]
[null,null,"1:6 cement plaster ±12mm thick and one skim plaster coat steel trowelled, on brickwork","H3"]
[]
["3",null,"On walls","m2",300,null,{"$f":"E32*F32","v":0}]
[]
["4",null,"On narrow widths not exceeding 300mm wide","m2",46,null,{"$f":"E34*F34","v":0}]
[]
[null,null,"Sub total ",null,0,null,{"$f":"SUM(G2:G35)","v":0}]

{"sheet":"TILING","index":10,"n_rows":65,"n_cols":7,"rows_kept":65}
["ITEM NO","PAY REF","DESCRIPTION","UNIT","QUANTITY","RATE","AMOUNT"]
[null,null,"BILL NO 10","H1"]
[]
[null,null,"TILING","H1"]
[]
[null,null,"PREAMBLES","H2"]
[]
[null,null,"Tenderers are referred to the relevant clauses in the Model Preambles for Trades (Latest Edition) as published by the Association of South African Quantity Surveyors and to the Supplementary Preambles which are incorporated in these Bills of Quantities.",null,0]
[]
[null,null,"SUPPLEMENTARY PREAMBLES","H2"]
[]
[null,null,"Descriptions Unless described as \"fixed with adhesive to plaster (plaster elsewhere)\" descriptions of tiling on brick or concrete walls, columns, etc shall be deemed to include 1:4 cement plaster backing and descriptions of tiling on concrete floors etc shall be deemed to include 1:3 plaster bedding",null,0]
[]
[null,null,"Fixing","H3"]
[]
[null,null,"Ceramic, porcelain, marble and granite tiles are to be fixed and grouted with suitable adhesives and grouts from the \"Tal Professional\" range of products as recommended by the manufacturer of the tiles",null,0]
[]
[null,null,"Samples","H3"]
[]
[null,null,"With reference to all items and colour schemes: Samples off all items is to be presented for approval prior to any bulk orders.",null,0]
[]
[null,null,"Trades Names","H3"]
[]
[null,null,"All trade names deemed to mean \"or similar approved\" (prior to tender closing date)",null,0]
[]
[null,null,"WALL TILING","H2"]
[]
[null,null,"200X100mm white gloss staggered metro tiles code:J-MW200X100","H3"]
[]
["1",null,"On walls","m2",50,null,{"$f":"E30*F30","v":0}]
[]
["2",null,"On walls in isolated panels, splashbacks, etc","m2",5,null,{"$f":"E32*F32","v":0}]
[]
[null,null,"FLOOR TILING","H2"]
[]
[]
["3",null,"300X300X8.3mm full bodied porcelain slip resistant tiles","m2",30,null,{"$f":"E37*F37","v":0}]
[]
[null,null,"600X600X8.3mm full bodied porcelain tiles(light colour salt & pepper range)","m2",80,null,{"$f":"E39*F39","v":0}]
[]
[null,null,"Belgotex vinyl tiles","m2",50,null,{"$f":"E41*F41","v":0}]
[]
[null,null,"Reccessed entrance Mat with brass frame by Belgotex grimebuster or similar approved","m2",4,null,{"$f":"E43*F43","v":0}]
[]
["4",null,"On risers 170mm high (of cut tiles)","m",60,null,{"$f":"E45*F45","v":0}]
[]
["5",null,"On treads 280mm wide (of cut tiles)","m",60,null,{"$f":"E47*F47","v":0}]
[]
["6",null,"Skirting 100mm high","m",200,null,{"$f":"E49*F49","v":0}]
[]
[null,null,"SUNDRIES","H2"]
[]
[null,null,"'M-trim' or similar approved","H3"]
[]
["7",null,"Promax \"FTET0022\" 25 x 10mm high aluminium tile-in stair nosing, fitted on treads","m",200,null,{"$f":"E55*F55","v":0}]
[]
[null,null,"Edge Trims:","H3"]
[]
["8",null,"12mm \"SEA\" aluminium sure strip stainless steel edge strips cut to lengths in position on edge of floor tiles.","m",150,null,{"$f":"E59*F59","v":0}]
[]
[null,null,"Expansion Joints","H3"]
[]
["9",null,"Promax Aluminium Heavy Duty Expansion Joint 12 x 2500mm","m",36,null,{"$f":"E63*F63","v":0}]
[]
[null,null,"Sub total ",null,0,null,{"$f":"SUM(G2:G64)","v":0}]

{"sheet":"PLUMBING","index":11,"n_rows":158,"n_cols":7,"rows_kept":158}
["ITEM NO","PAY REF","DESCRIPTION","UNIT","QUANTITY","RATE","AMOUNT"]
[null,null,"BILL NO. 11","H1"]
[]
[null,null,"PLUMBING AND DRAINAGE (PROVISIONAL)","H1"]
[]
[null,null,"PREAMBLES","H2"]
[]
[null,null,"Tenderers are referred to the relevant clauses in the \"Specification of Materials and Methods\" (PW371-A and PW371-B) Second Edition July 2013 which shall be deemed to be incorporated in these bills of quantities and the Supplementary Preambles which are incorporated in these Bills of Quantities.",null,0]
[]
[null,null,"SUPPLEMENTARY PREAMBLES","H2"]
[]
[null,null,"Sealing of edges","H3"]
[]
[null,null,"Outer edges of sinks, basins, baths, urinals, etc are to be sealed against adjacent surfaces with approved silicone",null,0]
[]
[null,null,"uPVC pipes and fittings","H3"]
[]
[null,null,"Sewer and drainage pipes and fittings shall be jointed and sealed with butyl rubber rings  Soil, waste and vent pipes and fittings shall be solvent weld jointed or sealed with butyl rubber rings",null,0]
[]
[null,null,"Reducing fittings","H3"]
[]
[null,null,"Where fittings have reducing ends or branches they are described as \"reducing\" and only the largest end or branch size is given. Should the contractor wish to use other fittings and bushes or reducers he may do so on the understanding that no claim in this regard will be entertained",null,0]
[]
[null,null,"Fixing of pipes","H3"]
[]
[null,null,"Unless specifically otherwise stated, descriptions of pipes shall be deemed to include fixing to walls, etc, casting in, building in or suspending not exceeding 1m below suspension level",null,0]
[]
[null,null,"General","H3"]
[]
[null,null,"Descriptions of service pipes and flexible connecting pipes shall be deemed to include connections to taps, cisterns, etc",null,0]
[]
[null,null,"Descriptions of WC pans, slop hoppers, etc shall be deemed to include for joints to soil pipes (pan connectors are separately measured)",null,0]
[]
[null,null,"As-built drawings","H3"]
[]
[null,null,"Where required, the contractor shall prepare an updated set of as-built drawings. At completion of the contract the contractor shall hand these drawings to the principal agent for reproducing onto the originals for handing over to the employer (provision for allowance of as-built drawings elsewhere)",null,0]
[]
[null,null,"Trades Names","H3"]
[]
[null,null,"All trade names deemed to mean \"or similar approved\" (prior to tender closing date)",null,0]
[]
[null,null,"SANITARY FITTINGS","H2"]
[]
[null,null,"Lecico Sanitary ware or other approved white vitreous china","H3"]
[]
["2",null,"Aquasave\" Low level WC suite comprising with 90 degree outlet wash down pan, double flap heavy duty plastic seat and matching 6 litre cistern with flush pipe","No",2,null,{"$f":"E46*F46","v":0}]
[]
["3",null,"Lavatera\" Wall urinal with spreader, 38mm chromium plated domical grating and two hanger brackets (flush valve elsewhere","No",0,null,{"$f":"E48*F48","v":0}]
[]
["4",null,"510 x 405mm \"Lecico \" Basin on  wall brackets","No",2,null,{"$f":"E50*F50","v":0}]
[]
[null,null,"WASTE UNIONS ETC","H2"]
[]
[null,null,"Lecico Sanitaryware or other approved","H3"]
[]
["5",null,"32mm \"Code: 8794Z0\" Chromium plated basin waste union","No",2,null,{"$f":"E56*F56","v":0}]
[]
[null,null,"Cobra Watertech or other approved","H3"]
[]
["6",null,"40mm Chromium plated sink waste union","No",0,null,{"$f":"E60*F60","v":0}]
[]
[null,null,"TAPS, VALVES, ETC","H2"]
[]
[null,null,"ISCA","H3"]
[]
["7",null,"15mm  Chromium plated stopcock","No",4,null,{"$f":"E66*F66","v":0}]
[]
[null,null,"Cobra Watertech","H3"]
[]
["8",null,"Carina - 171/041CA Chromium plated pillar \u0002type sink mixer","No",0,null,{"$f":"E70*F70","v":0}]
[]
["9",null,"15mm \"Carina - 214CA-15\" Chromium plated basin pillar tap","No",2,null,{"$f":"E72*F72","v":0}]
[]
["10",null,"'Ref 832/350F' Angle stop valve and flexi connector","No",4,null,{"$f":"E74*F74","v":0}]
[]
["11",null,"FJ6000\" Exposed type urinal flush valve with chromium plated palm press push button and push rod, including flush pipe","No",0,null,{"$f":"E76*F76","v":0}]
[]
[null,null,"TRAPS ETC","H2"]
[]
[null,null,"Cobra Watertech","H3"]
[]
["12",null,"50mm 345/50 CP bottle trap","No",2,null,{"$f":"E82*F82","v":0}]
[]
["13",null,"32 x 50mm Chromium plated bottle trap as 'Cobra 340/50' and joint to waste outlet fitting and to 50mm UPVC pipe including adaptor","No",0,null,{"$f":"E84*F84","v":0}]
[]
[null,null,"SANITARY PLUMBING","H2"]
[]
[null,null,"uPVC soil and vent pipes","H3"]
[]
["14",null,"50mm Pipe fixed in walls, ceilings, roofs, floors, etc ","m",61,null,{"$f":"E90*F90","v":0}]
[]
["15",null,"110mm Pipe and fixing to walls, etc","m",22,null,{"$f":"E92*F92","v":0}]
[]
[null,null,"Extra over uPVC soil and vent pipes for fittings","H3"]
[]
["16",null,"50mm Bend","No",50,null,{"$f":"E96*F96","v":0}]
[]
["17",null,"50mm Access bend","No",14,null,{"$f":"E98*F98","v":0}]
[]
["18",null,"50mm Junction","No",4,null,{"$f":"E100*F100","v":0}]
[]
["19",null,"110mm Pan connector","No",4,null,{"$f":"E102*F102","v":0}]
[]
["20",null,"110mm Flexi Bend","No",4,null,{"$f":"E104*F104","v":0}]
[]
["21",null,"110mm Access bend","No",4,null,{"$f":"E106*F106","v":0}]
[]
[null,null,"TESTING ","H1"]
[]
["22",null,"Testing waste pipe system ","Item",1,null,{"$f":"E110*F110","v":0}]
[]
[null,null,"WATER SUPPLIES ","H2"]
[]
[null,null,"Internal Reticulation","H4"]
[]
[null,null,"Class II copper pipes with capillary couplings","H3"]
[]
["23",null,"15mm Pipes","m",100,null,{"$f":"E118*F118","v":0}]
[]
["24",null,"22mm Pipes","m",32,null,{"$f":"E120*F120","v":0}]
[]
["25",null,"15mm Pipes chased to into walls","m",96,null,{"$f":"E122*F122","v":0}]
[]
[null,null,"Extra over Class II copper pipes for compression fittings","H3"]
[]
["26",null,"15mm fittings","No",120,null,{"$f":"E126*F126","v":0}]
[]
["27",null,"22mm fittings ","No",4,null,{"$f":"E128*F128","v":0}]
[]
[null,null,"Bulk Hot Water Supply","H4"]
[]
[null,null,"Class 2 copper pipes with capillary couplings","H3"]
[]
["28",null,"28mm Pipes","m",105,null,{"$f":"E134*F134","v":0}]
[]
[null,null,"Extra over Class 2 copper pipes for fittings","H3"]
[]
["29",null,"28mm fittings","No",18,null,{"$f":"E138*F138","v":0}]
[]
[null,null,"Thermal Insulation","H2"]
[]
[null,null,"KINDLY NOTE: ALL HOT WATER AS WELL AS COLD WATER PIPEWORK AND FITTINGS ON THE WALKWAYS AND OPEN TO ATMOSPHERE MUST BE LAGGED.","H3"]
[]
[null,null,"Thermal Insulation to be type Polyisocyonarate insulation snap on type glued together in 2 halves and sealed with duct tape. Cutouts for pipe hangerts to be sealed with Silicon. All insulation on the walkways and outside to atmosphere are to be painted with PVA paint.","H3"]
[]
["30",null,"28mm Pipes","m",105,null,{"$f":"E146*F146","v":0}]
[]
[null,null,"Sundries","H3"]
[]
[null,null,"Pipe bracket type Flamco Extra BSA-G","H3"]
[]
["31",null,"28mm diameter","No",9,null,{"$f":"E152*F152","v":0}]
[]
[null,null,"Testing","H3"]
[]
["32",null,"Testing water pipe system","Item",1,null,{"$f":"E156*F156","v":0}]
[]
[null,null,"Sub total ",null,0,null,{"$f":"SUM(G11:G157)","v":0}]

{"sheet":"GLAZING","index":12,"n_rows":44,"n_cols":8,"rows_kept":44}
["PAGE NO","ITEM NO","PAY REF","DESCRIPTION","UNIT","QUANTITY","RATE","AMOUNT"]
[53,null,null,"BILL NO 12","H1"]
[]
[53,null,null,"GLAZING","H1"]
[]
[53,null,null,"PREAMBLES","H2"]
[]
[53,null,null,"Tenderers are referred to the relevant clauses in the Model Preambles for Trades (Latest Edition) as published by the Association of South African Quantity Surveyors and to the Supplementary Preambles which are incorporated in these Bills of Quantities.",null,0]
[]
[53,null,null,"SUPPLEMENTARY PREAMBLES","H2"]
[]
[53,null,null,"Float glass","H3"]
[]
[53,null,null,"The term \"float glass\" is used for monolithic annealed glass",null,0]
[]
[53,null,null,"Trades Names","H3"]
[]
[53,null,null,"All trade names deemed to mean \"or similar approved\" (prior to tender closing date)",null,0]
[]
[53,null,null,"GLAZING TO STEEL WITH PUTTY","H2"]
[]
[53,null,null,"4mm Clear float glass","H3"]
[]
[53,"1",null,"Panes exceeding 0,1m2 and not exceeding 0,5m2","m2",20,null,{"$f":"F24*G24","v":0}]
[]
[53,"2",null,"Panes exceeding 0,5m2 and not exceeding 2m2","m2",33,null,{"$f":"F26*G26","v":0}]
[]
[53,null,null,"4mm Obscure glass","H3"]
[]
[53,"3",null,"Panes exceeding 0,1m2 and not exceeding 0,5m2","m2",23,null,{"$f":"F30*G30","v":0}]
[]
[53,null,null,"Sundries","H3"]
[]
[53,"4",null,"Window Tinting ","m2",48,null,{"$f":"F34*G34","v":0}]
[]
[53,"5",null,"New putty to existing steel windows (removing of existing putty elsewhere) ","m",102,null,{"$f":"F36*G36","v":0}]
[]
[54,null,null,"TOPS, SHELVES, DOORS, MIRRORS, ETC"]
[]
[54,null,null,"4mm Silvered float glass copper backed mirrors with polished edges, holed for and fixed with chromium plated dome capped mirror screws with rubber buffers to plugs in brickwork or concrete"]
[]
[54,"6",null,"Mirror 460 x 650mm high with 4 screws","No",2,null,{"$f":"F42*G42","v":0}]
[]
[{"$nulls":3},"Sub total ",null,0,null,{"$f":"SUM(H2:H43)","v":0}]

{"sheet":"PAINTING","index":13,"n_rows":98,"n_cols":8,"rows_kept":98}
["PAGE NO","ITEM NO","PAY REF","DESCRIPTION","UNIT","QUANTITY","RATE","AMOUNT"]
[56,null,null,"BILL NO 13","H1"]
[]
[56,null,null,"PAINTWORK","H1"]
[]
[56,null,null,"PREAMBLES","H2"]
[]
[56,null,null,"Tenderers are referred to the relevant clauses in the Model Preambles for Trades (Latest Edition) as published by the Association of South African Quantity Surveyors and to the Supplementary Preambles which are incorporated in these Bills of Quantities.",null,0]
[]
[56,null,null,"SUPPLEMENTARY PREAMBLES","H2"]
[]
[56,null,null,"Paint specifications","H3"]
[]
[56,null,null,"All paint to conform to all SANS specifications",null,0]
[]
[56,null,null,"Colours","H3"]
[]
[56,null,null,"Unless otherwise described all paintwork shall be deemed to have a colour value in excess of 7 on the Munsell system in accordance with SANS 1091",null,0]
[]
[56,null,null,"PAINT SPECIFICATIONS","H2"]
[]
[56,null,null,"All painting shall be done in accordance with \"Plascon-Evans\" specifications",null,0]
[]
[56,null,null,"Trades Names","H3"]
[]
[56,null,null,"All trade names deemed to mean \"or similar approved\" (prior to tender closing date)",null,0]
[]
[56,null,null,"PREPARATORY WORK TO EXISTING WORK","H2"]
[]
[56,null,null,"Previously painted plastered surfaces","H3"]
[]
[56,null,null,"Surfaces shall be thoroughly washed down and allowed to dry completely before any paint is applied. Blistered or peeling paint shall be completely removed and cracks shall be opened, filled with a suitable filler and finished smooth",null,0]
[]
[57,null,null,"Previously painted metal surfaces ","H3"]
[]
[57,null,null,"Surfaces shall be thoroughly rubbed and cleaned down.  Blistered or peeling paint shall be completely removed down to bare metal",null,0]
[]
[57,null,null,"Previously painted wood surfaces","H3"]
[]
[57,null,null,"Surfaces shall be thoroughly cleaned down.  Blistered or peeling paint shall be completely removed and cracks and crevices shall be primed, filled with suitable filler and finished smooth",null,0]
[]
[57,null,null,"PAINTWORK, ETC TO NEW WORK ON","H2"]
[]
[57,null,null,"PLASTER BOARD SURFACES WITH","H2"]
[]
[57,null,null,"One coat alkali resistant plaster primer and two coats PVA acrylic emulsion paint","H3"]
[]
[57,"1",null,"Ceilings and cornices","m2",50,null,{"$f":"F48*G48","v":0}]
[]
[57,null,null,"METAL SURFACES WITH","H2"]
[]
[57,null,null,"Spot priming defects in pre-primed surfaces with zinc phosphate metal primer, one coat universal undercoat and two coats super universal enamel paint","H3"]
[]
[57,"2",null,"Door frames","m2",50,null,{"$f":"F54*G54","v":0}]
[]
[57,"3",null,"On burglar bars","m2",10,null,{"$f":"F56*G56","v":0}]
[]
[57,null,null,"WOOD SURFACES","H2"]
[]
[57,null,null,"One coat oil wood primer, one coat universal undercoat and two coats super universal enamel paint","H3"]
[]
[57,"4",null,"Doors","m2",100,null,{"$f":"F62*G62","v":0}]
[]
[57,null,null,"PAINTWORK, ETC TO PREVIOUSLY PAINTED WORK","H2"]
[]
[57,null,null,"ON FLOATED PLASTER SURFACES","H2"]
[]
[58,null,null,"Clean down all paint and remove all loose paints and stains and apply 'Plascon Professional Plaster Primer (PP700)' and two coats 'Plascon Wall and All Pure Acrylic PVA' including repairs to all hairline cracks","H3"]
[]
[58,"5",null,"Internal walls","m2",1000,null,{"$f":"F70*G70","v":0}]
[]
[58,"6",null,"On Soffits","m2",50,null,{"$f":"F72*G72","v":0}]
[]
[58,"7",null,"External walls","m2",1000,null,{"$f":"F74*G74","v":0}]
[]
[58,null,null,"ON PLASTER BOARD SURFACES","H2"]
[]
[58,null,null,"Clean down all paint and remove all loose paints and stains One coat Professional Primer and two coats 'Plascon' Polvin Super Acrylic PVA paint","H3"]
[]
[58,"8",null,"Ceilings and cornices","m2",100,null,{"$f":"F80*G80","v":0}]
[]
[58,"9",null,"Duct covers","m2",0,null,{"$f":"F82*G82","v":0}]
[]
[58,null,null,"METAL SURFACES WITH","H2"]
[]
[58,null,null,"Clean down all paint and remove all loose paints and flakes Spot priming defects in pre-primed surfaces with zinc phosphate metal primer, one coat universal undercoat and two coats super universal enamel paint","H3"]
[]
[58,"10",null,"Door frames","m2",50,null,{"$f":"F88*G88","v":0}]
[]
[58,"11",null,"Window frames","m2",10,null,{"$f":"F90*G90","v":0}]
[]
[58,null,null,"ON WOOD SURFACES","H2"]
[]
[58,null,null,"Clean down all paint and remove all loose paints and flakes One coat oil wood primer, one coat universal undercoat and two coats 'Plascon Velvaglo' enamel paint on","H3"]
[]
[58,"12",null,"Doors","m2",50,null,{"$f":"F96*G96","v":0}]
[]
[{"$nulls":3},"Sub total ",null,0,null,{"$f":"SUM(H2:H97)","v":0}]

{"sheet":"ROOF","index":14,"n_rows":21,"n_cols":7,"rows_kept":21}
["ITEM NO","PAY REF","DESCRIPTION","UNIT","QUANTITY","RATE","AMOUNT"]
[1,null,"BILL NO 14","H1"]
[2]
[3,null,"ROOF","H1"]
[4]
[5,null,"PREAMBLES","H2"]
[6]
[null,null,"Tenderers are referred to the relevant clauses in the Model Preambles for Trades (Latest Edition) as published by the Association of South African Quantity Surveyors and to the Supplementary Preambles which are incorporated in these Bills of Quantities."]
[7]
[8,null,"Retain roof covering. Inspect for damage and leaks. Repair leaks and "]
[9,null,"sagging roof where required. Report more serious damage to architect"]
[10,null,"before work is put in hand."]
[11,null,"- Clear debris from gutters, power wash and inspect for leaks. Repair where"]
[12,null,"required. Prepare and paint gutters paint code Sasol 29."]
[13,null,"- Inspect all flashings and water proofing for damage and leaks. Repair and"]
[14,null,"refinish where required."]
[15,null,"- Remove tiles and tile adhesive from top of parapet, repair plaster to slope"]
[16,null,"towards roof. Repair water- and damp proofing with acrylic type system."]
[17,null,"Prepare and paint in accordance to DoH specification & standard.",{"$nulls":3},{"$f":"F19*E19","v":0}]
[]
[null,null,"Sub total ",{"$nulls":3},{"$f":"SUM(G2:G20)","v":0}]

{"sheet":"PROVISIONAL SUM","index":15,"n_rows":15,"n_cols":3,"rows_kept":15}
["Item","Description","Bill Amount"]
[]
[1,"ELECTRICAL WORKS"]
[]
[2,"Provide the sum of for Mechanical Installation. "]
[]
[3,"Provide the Sum for Signage."]
[]
[4,"Provide the sum for window blinds."]
[]
[5,"Provide the sum for supply and installation of gas storage and bottles."]
[]
[6,"Restoration of the current laboratory"]
[]
[null,"TOTAL BUILDING WORK",{"$f":"SUM(C2:C14)","v":0}]

{"sheet":"SUMMARY","index":16,"n_rows":49,"n_cols":7,"rows_kept":49}
["ITEM NO","PAY REF","DESCRIPTION","UNIT","QUANTITY","RATE","AMOUNT"]
["0",null,"PRELIMINARIES","Page",null,null,0]
[]
["1",null,"ALTERATIONS","Page",null,null,{"$f":"ALTERATIONS!G125","v":0}]
[]
["2",null,"CONCRETE, FORMWORK AND REINFORCEMENT","Page",null,null,{"$f":"'CONC,FORMWORK&REINFORCEMENT'!G118","v":0}]
[]
["3",null,"MASONRY","Page",null,null,{"$f":"MASONRY!G54","v":0}]
[]
["4",null,"WATERPROOFING","Page",null,null,{"$f":"WATERPROOFING!G26","v":0}]
[]
["5",null,"CARPENTRY AND JOINERY","Page",null,null,{"$f":"'CARPENTRY&JOINERY'!G64","v":0}]
[]
["6",null,"CEILINGS, PARTITIONS AND ACCESS FLOORING","Page",null,null,{"$f":"'CEILINGS&PARTITIONS'!G50","v":0}]
[]
["7",null,"IRONMONGERY","Page",null,null,{"$f":"IRONMOGERY!G107","v":0}]
[]
["8",null,"METALWORK","Page",null,null,{"$f":"METALWORK!G72","v":0}]
[]
["9",null,"PLASTERING","Page",null,null,{"$f":"PLASTERING!G36","v":0}]
[]
["10",null,"TILING","Page",null,null,{"$f":"TILING!G65","v":0}]
[]
["11",null,"PLUMBING AND DRAINAGE","Page",null,null,{"$f":"PLUMBING!G158","v":0}]
[]
["12",null,"GLAZING","Page",null,null,{"$f":"GLAZING!H44","v":0}]
[]
["13",null,"PAINTWORK","Page",null,null,{"$f":"PAINTING!H98","v":0}]
[]
["14",null,"ROOF",{"$nulls":3},{"$f":"ROOF!G21","v":0}]
[]
["15",null,"PROVISIONAL SUM",{"$nulls":3},{"$f":"'PROVISIONAL SUM'!C15","v":0}]
[null,null,"Sub total ",null,0,null,{"$f":"SUM(G2:G32)","v":0}]
[]
["1",null,"Preliminaries","Page",null,null,{"$f":"'P & G''s'!G162","v":0}]
[]
["2",null,"Builders Work","Page",null,null,{"$f":"G33","v":0}]
[]
[null,null,"NET TOTAL: EXCLUDING VALUE ADDED TAX & CONTINGENCY","ST",0,null,{"$f":"G33+G35","v":0}]
[]
[null,null,"CONTINGENCY","H2"]
[]
[null,null,"Allow an amount of 5% for contingencies to be used as directed by the Principal Agent, or deducted in whole or in part, if not required","%",null,{"v":0.1,"d":"10%"},{"$f":"G39*F43","v":0}]
[]
[null,null,"NET TOTAL: EXCLUDING VALUE-ADDED TAX","ST",0,null,{"$f":"SUM(G39:G44)","v":0}]
[]
[null,null,"ADD: 15% (FIFTEEN PERCENT) on the above total for VALUE ADDED TAX","TAX",null,{"v":0.15,"d":"15%"},{"$f":"G45*F47","v":0}]
[]
[null,null,"Carried to Form of offer ",0,null,null,{"$f":"SUM(G45:G48)","v":0}]